[Event "NJSK 2018 Jeugd C"]
[Site "Assen, Netherlands"]
[Date "2018.05.05"]
[Round "9.2"]
[White "Kutchoukov, Daniel"]
[Black "Boghossian, Wahe"]
[Result "1/2-1/2"]
[TimeControl "40/90m+30sec/move"]
[WhiteElo "1902"]
[BlackElo "1748"]

1. e4 {[%clk 01:30:59]} {[%emt 00:00:01]} c5 {[%clk 01:30:56]} {[%emt
00:00:20]} 2. Nc3 {[%clk 01:31:26]} {[%emt 00:00:17]} d6 {[%clk 01:31:22]}
{[%emt 00:00:16]} 3. Bb5+ {[%clk 01:31:39]} {[%emt 00:00:26]} Nc6 {[%clk
01:31:43]} {[%emt 00:00:14]} 4. Bxc6+ {[%clk 01:32:04]} {[%emt 00:00:04]} bxc6
{[%emt 00:00:20]} 5. f4 {[%clk 01:32:28]} {[%emt 00:00:06]} g6 {[%clk
01:30:37]} {[%emt 00:02:09]} 6. Nf3 {[%clk 01:32:27]} {[%emt 00:00:39]} Bg7
{[%clk 01:30:50]} {[%emt 00:00:24]} 7. O-O {[%clk 01:32:50]} {[%emt 00:00:07]}
e6 {[%clk 01:30:27]} {[%emt 00:00:57]} 8. d3 {[%clk 01:31:37]} {[%emt
00:01:24]} Ne7 {[%clk 01:30:34]} {[%emt 00:00:19]} 9. Qe1 {[%clk 01:26:00]}
{[%emt 00:04:49]} O-O {[%clk 01:30:42]} {[%emt 00:00:21]} 10. Kh1 {[%clk
01:23:22]} {[%emt 00:03:10]} d5 {[%clk 01:26:26]} {[%emt 00:04:46]} 11. Na4
{[%clk 01:22:04]} {[%emt 00:01:48]} c4 {[%clk 01:21:44]} {[%emt 00:05:11]} 12.
dxc4 {[%clk 01:22:03]} {[%emt 00:00:31]} Ba6 {[%clk 01:20:31]} {[%emt
00:01:45]} 13. e5 {[%clk 01:04:38]} {[%emt 00:17:53]} Bxc4 {[%clk 01:20:09]}
{[%emt 00:00:53]} 14. Rf2 {[%clk 01:02:14]} {[%emt 00:02:53]} Nf5 {[%clk
01:16:15]} {[%emt 00:04:23]} 15. b3 {[%clk 00:59:15]} {[%emt 00:03:33]} Bb5
{[%clk 01:13:58]} {[%emt 00:02:47]} 16. Nc5 {[%clk 00:57:57]} {[%emt 00:01:44]}
a5 {[%clk 01:13:42]} {[%emt 00:00:47]} 17. a4 {[%clk 00:58:12]} {[%emt
00:00:15]} Ba6 {[%clk 01:13:40]} {[%emt 00:00:32]} 18. Qd2 {[%clk 00:40:39]}
{[%emt 00:18:06]} Re8 {[%clk 01:09:47]} {[%emt 00:04:21]} 19. Bb2 {[%clk
00:38:11]} {[%emt 00:02:59]} Bf8 {[%clk 01:08:35]} {[%emt 00:01:41]} 20. Ba3
{[%clk 00:36:23]} {[%emt 00:02:19]} Ra7 {[%clk 01:05:32]} {[%emt 00:03:33]} 21.
g4 {[%clk 00:31:22]} {[%emt 00:05:31]} Nh6 {[%clk 00:55:46]} {[%emt 00:10:17]}
22. Rg1 {[%clk 00:26:36]} {[%emt 00:05:16]} Qb6 {[%clk 00:52:27]} {[%emt
00:03:45]} 23. Qc3 {[%clk 00:24:10]} {[%emt 00:02:59]} f5 {[%clk 00:41:11]}
{[%emt 00:12:01]} 24. exf6 {[%clk 00:21:30]} {[%emt 00:02:56]} Nf7 {[%emt
00:01:20]} 25. Re1 {[%clk 00:07:38]} {[%emt 00:14:21]} Nd6 {[%clk 00:39:12]}
{[%emt 00:01:41]} 26. Nd4 {[%clk 00:04:33]} {[%emt 00:03:35]} Ne4 {[%clk
00:38:10]} {[%emt 00:01:31]} 27. Nxe4 {[%clk 00:04:16]} {[%emt 00:00:47]} Bxa3
{[%clk 00:38:19]} {[%emt 00:00:22]} 28. Qxc6 {[%clk 00:02:38]} {[%emt
00:02:07]} Qxc6 {[%clk 00:38:29]} {[%emt 00:00:20]} 29. Nxc6 {[%clk 00:03:07]}
{[%emt 00:00:01]} dxe4 {[%clk 00:38:35]} {[%emt 00:00:25]} 30. Nxa7 {[%clk
00:03:18]} {[%emt 00:00:19]} Bc5 {[%clk 00:38:38]} {[%emt 00:00:27]} 31. Rd2
{[%clk 00:02:49]} {[%emt 00:00:58]} Bxa7 {[%clk 00:35:00]} {[%emt 00:04:09]} 32.
Rd7 {[%clk 00:03:18]} {[%emt 00:00:02]} Ra8 {[%clk 00:33:03]} {[%emt 00:02:27]}
33. Rxe4 {[%clk 00:03:36]} {[%emt 00:00:11]} Bc8 {[%clk 00:30:40]} {[%emt
00:02:58]} 34. Rg7+ {[%clk 00:02:36]} {[%emt 00:01:25]} Kf8 {[%clk 00:30:24]}
{[%emt 00:00:46]} 35. Rc4 {[%clk 00:02:30]} {[%emt 00:00:35]} Bb6 {[%clk
00:29:45]} {[%emt 00:01:11]} 36. Rxh7 {[%clk 00:02:52]} {[%emt 00:00:08]} Kg8
{[%clk 00:14:48]} {[%emt 00:15:27]} 37. Rg7+ {[%clk 00:03:05]} {[%emt
00:00:18]} Kf8 {[%clk 00:14:50]} {[%emt 00:00:27]} 38. h4 {[%clk 00:00:40]}
{[%emt 00:02:57]} Rb8 {[%clk 00:14:39]} {[%emt 00:00:40]} 39. h5 {[%clk
00:00:43]} {[%emt 00:00:26]} Ba6 {[%clk 00:14:12]} {[%emt 00:00:57]} 40. Rc6
{[%clk 00:00:34]} {[%emt 00:00:39]} Bb7 {[%clk 00:14:25]} {[%emt 00:00:18]} 41.
Rxb7 {[%clk 00:00:56]} {[%emt 00:00:09]} Rxb7 {[%clk 00:14:46]} {[%emt
00:00:09]} 42. hxg6 {[%clk 00:00:32]} {[%emt 00:00:54]} Rb8 {[%clk 00:13:43]}
{[%emt 00:01:33]} 43. Rxe6 {[%clk 00:00:33]} {[%emt 00:00:33]} Bc5 {[%clk
00:12:48]} {[%emt 00:01:21]} 44. g5 {[%clk 00:00:34]} {[%emt 00:00:29]} Rd8
{[%clk 00:10:40]} {[%emt 00:02:35]} 45. f7 {[%clk 00:00:32]} {[%emt 00:00:35]}
Rd1 {[%clk 00:09:19]} {[%emt 00:01:50]} 46. Kg2 {[%clk 00:01:01]} {[%emt
00:00:01]} Kg7 {[%clk 00:07:32]} {[%emt 00:02:18]} 47. f5 {[%clk 00:00:38]}
{[%emt 00:00:53]} Rg1+ {[%clk 00:07:32]} {[%emt 00:00:29]} 48. Kf3 {[%clk
00:00:51]} {[%emt 00:00:16]} Rxg5 {[%clk 00:07:34]} {[%emt 00:00:28]} 49. Kf4
{[%clk 00:00:34]} {[%emt 00:00:47]} Rg1 {[%clk 00:07:32]} {[%emt 00:00:31]} 50.
Re8 {[%clk 00:00:44]} {[%emt 00:00:21]} Rf1+ {[%clk 00:07:33]} {[%emt
00:00:30]} 51. Ke5 {[%clk 00:00:57]} {[%emt 00:00:16]} Bf8 {[%clk 00:07:32]}
{[%emt 00:00:31]} 52. f6+ {[%clk 00:01:17]} {[%emt 00:00:11]} Rxf6 {[%clk
00:07:55]} {[%emt 00:00:06]} 53. b4 {[%clk 00:00:32]} {[%emt 00:01:16]} Rxg6
{[%clk 00:07:30]} {[%emt 00:00:54]} 54. Kf5 {[%clk 00:00:31]} {[%emt 00:00:31]}
Rf6+ {[%clk 00:07:29]} {[%emt 00:00:31]} 55. Ke5 {[%clk 00:00:33]} {[%emt
00:00:29]} Rxf7 {[%clk 00:06:55]} {[%emt 00:01:04]} 56. b5 {[%clk 00:00:34]}
{[%emt 00:00:30]} Rf2 {[%clk 00:03:51]} {[%emt 00:03:41]} 57. Kd5 {[%clk
00:00:31]} {[%emt 00:00:26]} Rxc2 {[%clk 00:02:17]} {[%emt 00:02:04]} 58. b6
{[%clk 00:00:33]} {[%emt 00:00:28]} Rd2+ {[%clk 00:00:33]} {[%emt 00:02:13]} 59.
Kc6 {[%clk 00:00:31]} {[%emt 00:00:32]} Rd6+ {[%clk 00:00:33]} {[%emt
00:00:31]} 60. Kc7 {[%clk 00:00:42]} {[%emt 00:00:20]} Rd3 {[%clk 00:00:35]}
{[%emt 00:00:26]} 61. b7 {[%clk 00:00:41]} {[%emt 00:00:32]} Bd6+ {[%clk
00:00:44]} {[%emt 00:00:21]} 62. Kc6 {[%clk 00:00:52]} {[%emt 00:00:17]} Bf4
{[%clk 00:00:39]} {[%emt 00:00:38]} 63. b8=Q {[%clk 00:00:37]} {[%emt
00:00:44]} Bxb8 {[%clk 00:00:45]} {[%emt 00:00:27]} 64. Rxb8 {[%clk 00:01:05]}
Rc3+ {[%clk 00:00:38]} {[%emt 00:00:37]} 65. Kd5 {[%clk 00:00:32]} {[%emt
00:01:10]} Ra3 {[%clk 00:00:45]} {[%emt 00:00:16]} 66. Rb7+ {[%clk 00:00:31]}
{[%emt 00:00:30]} Kf6 {[%clk 00:01:01]} {[%emt 00:00:14]} 67. Rb6+ {[%clk
00:00:40]} {[%emt 00:00:22]} Kf5 {[%clk 00:01:08]} {[%emt 00:00:21]} 68. Kc5
{[%clk 00:00:39]} {[%emt 00:00:33]} Rxa4 {[%clk 00:01:04]} {[%emt 00:00:34]} 69.
Kb5 {[%clk 00:01:06]} {[%emt 00:00:01]} Rb4+ {[%clk 00:01:17]} {[%emt
00:00:22]} 70. Kxa5 {[%clk 00:01:33]} Rxb6 {[%clk 00:01:35]} {[%emt 00:00:11]}
71. Kxb6 {[%emt 00:00:03]} 1/2-1/2

[Event "NJSK 2018 Jeugd C"]
[Site "Assen, Netherlands"]
[Date "2018.05.05"]
[Round "9.3"]
[White "Shakhverdian, William"]
[Black "Pham, Khoi"]
[Result "1-0"]
[TimeControl "40/90m+30sec/move"]
[WhiteElo "1777"]
[BlackElo "1983"]

1. e4 {[%clk 01:30:58]} {[%emt 00:00:10]} c5 {[%clk 01:30:55]} {[%emt
00:00:24]} 2. Nf3 {[%clk 01:31:22]} {[%emt 00:00:25]} d6 {[%clk 01:31:18]}
{[%emt 00:00:11]} 3. Nc3 {[%clk 01:31:44]} {[%emt 00:00:12]} a6 {[%clk
01:30:40]} {[%emt 00:01:22]} 4. d4 {[%clk 01:31:06]} {[%emt 00:01:19]} cxd4
{[%clk 01:31:04]} {[%emt 00:00:05]} 5. Nxd4 {[%clk 01:31:32]} {[%emt 00:00:05]}
Nf6 {[%clk 01:31:29]} {[%emt 00:00:07]} 6. f3 {[%clk 01:30:38]} {[%emt
00:01:40]} e6 {[%clk 01:31:41]} {[%emt 00:00:21]} 7. Be3 {[%clk 01:31:03]}
{[%emt 00:00:04]} b5 {[%clk 01:32:06]} {[%emt 00:00:02]} 8. a3 {[%clk
01:30:46]} {[%emt 00:00:40]} Nbd7 {[%clk 01:32:12]} {[%emt 00:00:18]} 9. Be2
{[%clk 01:31:02]} {[%emt 00:00:14]} Bb7 {[%clk 01:32:16]} {[%emt 00:00:21]} 10.
Qd2 {[%clk 01:31:08]} {[%emt 00:00:19]} Rc8 {[%clk 01:32:17]} {[%emt 00:00:15]}
11. g4 {[%clk 01:31:29]} {[%emt 00:00:06]} Nb6 {[%clk 01:32:15]} {[%emt
00:00:20]} 12. O-O-O {[%clk 01:31:20]} {[%emt 00:00:14]} d5 {[%clk 01:20:42]}
{[%emt 00:11:42]} 13. e5 {[%clk 01:30:41]} {[%emt 00:01:09]} Nfd7 {[%clk
01:19:51]} {[%emt 00:01:20]} 14. f4 {[%clk 01:30:34]} {[%emt 00:00:40]} b4
{[%clk 01:19:35]} {[%emt 00:00:44]} 15. Na2 {[%clk 01:25:04]} {[%emt 00:06:00]}
bxa3 {[%clk 01:17:25]} {[%emt 00:02:40]} 16. b3 {[%clk 01:25:13]} {[%emt
00:00:21]} Nc5 {[%clk 01:09:13]} {[%emt 00:08:41]} 17. Bf3 {[%clk 01:24:09]}
{[%emt 00:01:34]} Qc7 {[%clk 01:07:54]} {[%emt 00:01:49]} 18. Kb1 {[%clk
01:20:52]} {[%emt 00:03:46]} Ne4 {[%clk 00:57:49]} {[%emt 00:10:35]} 19. Bxe4
{[%clk 01:19:35]} {[%emt 00:01:48]} dxe4 {[%clk 00:58:07]} {[%emt 00:00:13]} 20.
Nxe6 {[%clk 01:12:43]} {[%emt 00:07:20]} fxe6 {[%clk 00:54:49]} {[%emt
00:03:47]} 21. Bxb6 {[%clk 01:13:09]} {[%emt 00:00:05]} e3 {[%clk 00:54:18]}
{[%emt 00:01:01]} 22. Qd3 {[%clk 01:13:00]} {[%emt 00:00:38]} Qc6 {[%clk
00:53:29]} {[%emt 00:01:19]} 23. Rhe1 {[%clk 01:02:29]} {[%emt 00:11:01]} Be7
{[%clk 00:53:14]} {[%emt 00:00:44]} 24. Bxe3 {[%clk 01:02:39]} {[%emt
00:00:20]} O-O {[%clk 00:52:34]} {[%emt 00:01:11]} 25. Rd2 {[%clk 00:49:29]}
{[%emt 00:13:41]} Rfd8 {[%clk 00:44:55]} {[%emt 00:08:08]} 26. Qe2 {[%clk
00:49:00]} {[%emt 00:00:59]} a5 {[%clk 00:44:49]} {[%emt 00:00:36]} 27. Red1
{[%clk 00:46:18]} {[%emt 00:03:13]} Ba6 {[%clk 00:42:08]} {[%emt 00:03:11]} 28.
Rxd8+ {[%clk 00:44:03]} {[%emt 00:02:45]} Bxd8 {[%clk 00:41:59]} {[%emt
00:00:38]} 29. Qd2 {[%clk 00:43:16]} {[%emt 00:01:17]} a4 {[%clk 00:39:52]}
{[%emt 00:02:38]} 30. Nb4 {[%clk 00:26:45]} {[%emt 00:17:01]} Qb7 {[%clk
00:34:03]} {[%emt 00:06:18]} 31. Qd6 {[%clk 00:19:52]} {[%emt 00:07:25]} axb3
{[%clk 00:27:48]} {[%emt 00:06:44]} 32. Qxe6+ {[%clk 00:19:38]} {[%emt
00:00:44]} Qf7 {[%clk 00:26:54]} {[%emt 00:01:26]} 33. Qxf7+ {[%clk 00:19:16]}
{[%emt 00:00:51]} Kxf7 {[%clk 00:27:18]} {[%emt 00:00:06]} 34. cxb3 {[%clk
00:19:18]} {[%emt 00:00:28]} Bb5 {[%clk 00:25:49]} {[%emt 00:02:00]} 35. Rc1
{[%clk 00:15:43]} {[%emt 00:04:03]} Rb8 {[%clk 00:24:10]} {[%emt 00:02:10]} 36.
Ka2 {[%clk 00:14:01]} {[%emt 00:02:11]} Ra8 {[%clk 00:15:25]} {[%emt 00:09:15]}
37. Nc6 {[%clk 00:13:02]} {[%emt 00:01:28]} Bxc6 {[%clk 00:08:52]} {[%emt
00:07:04]} 38. Rxc6 {[%clk 00:13:27]} {[%emt 00:00:06]} Ba5 {[%clk 00:08:41]}
{[%emt 00:00:41]} 39. e6+ {[%clk 00:12:04]} {[%emt 00:01:53]} Ke7 {[%clk
00:08:09]} {[%emt 00:01:02]} 40. Bc5+ {[%clk 00:12:15]} {[%emt 00:00:19]} Ke8
{[%clk 00:08:16]} {[%emt 00:00:24]} 41. b4 {[%clk 00:12:12]} {[%emt 00:00:33]}
Bd8 {[%clk 00:08:39]} {[%emt 00:00:06]} 42. e7 {[%clk 00:12:08]} {[%emt
00:00:34]} Bxe7 {[%clk 00:08:31]} {[%emt 00:00:42]} 43. Re6 {[%clk 00:12:34]}
1-0

[Event "NJSK 2018 Jeugd C"]
[Site "Assen, Netherlands"]
[Date "2018.05.05"]
[Round "9.4"]
[White "Nguyen, Lucas"]
[Black "Elgersma, Onno"]
[Result "0-1"]
[TimeControl "40/90m+30sec/move"]
[WhiteElo "1919"]
[BlackElo "2060"]

1. e4 {[%clk 01:30:57]} {[%emt 00:00:06]} e6 {[%clk 01:30:57]} {[%emt
00:00:22]} 2. d4 {[%clk 01:31:24]} {[%emt 00:00:16]} d5 {[%clk 01:31:20]}
{[%emt 00:00:14]} 3. Nd2 {[%clk 01:31:51]} {[%emt 00:00:06]} Nf6 {[%clk
01:31:37]} {[%emt 00:00:21]} 4. Bd3 {[%clk 01:32:14]} {[%emt 00:00:08]} c5
{[%clk 01:31:38]} {[%emt 00:00:39]} 5. c3 {[%clk 01:32:38]} {[%emt 00:00:04]}
Nc6 {[%clk 01:31:50]} {[%emt 00:00:22]} 6. Ngf3 {[%clk 01:33:01]} {[%emt
00:00:09]} Be7 {[%clk 01:30:03]} {[%emt 00:02:38]} 7. O-O {[%clk 01:31:52]}
{[%emt 00:01:37]} O-O {[%clk 01:28:34]} {[%emt 00:01:27]} 8. Bb1 {[%clk
01:31:12]} {[%emt 00:00:38]} cxd4 {[%clk 01:21:17]} {[%emt 00:07:19]} 9. cxd4
{[%clk 01:31:36]} {[%emt 00:00:06]} dxe4 {[%clk 01:21:11]} {[%emt 00:00:36]} 10.
Nxe4 {[%clk 01:32:02]} {[%emt 00:00:05]} Qb6 {[%clk 01:21:13]} {[%emt
00:00:27]} 11. b3 {[%clk 01:24:47]} {[%emt 00:07:47]} Rd8 {[%clk 01:06:49]}
{[%emt 00:14:53]} 12. Be3 {[%clk 01:19:44]} {[%emt 00:05:32]} Nd5 {[%clk
01:04:13]} {[%emt 00:03:08]} 13. Qe2 {[%clk 01:15:44]} {[%emt 00:04:28]} f5
{[%clk 00:59:02]} {[%emt 00:06:16]} 14. Neg5 {[%clk 01:07:35]} {[%emt
00:08:05]} Bf6 {[%clk 00:55:16]} {[%emt 00:04:16]} 15. Qc4 {[%clk 00:47:51]}
{[%emt 00:20:13]} h6 {[%clk 00:52:17]} {[%emt 00:03:31]} 16. Nh3 {[%clk
00:48:00]} {[%emt 00:00:19]} g5 {[%clk 00:50:42]} {[%emt 00:02:05]} 17. Ne1
{[%clk 00:37:13]} {[%emt 00:11:18]} g4 {[%clk 00:49:16]} {[%emt 00:01:56]} 18.
Bxf5 {[%clk 00:31:19]} {[%emt 00:06:24]} exf5 {[%clk 00:49:32]} {[%emt
00:00:14]} 19. Nf4 {[%clk 00:31:45]} {[%emt 00:00:03]} Na5 {[%clk 00:49:25]}
{[%emt 00:00:38]} 20. Nxd5 {[%clk 00:30:02]} {[%emt 00:02:15]} Nxc4 {[%clk
00:48:35]} {[%emt 00:01:18]} 21. Nxb6 {[%clk 00:30:28]} {[%emt 00:00:04]} Nxb6
{[%clk 00:48:59]} {[%emt 00:00:06]} 22. Bxh6 {[%clk 00:28:23]} {[%emt
00:02:38]} Bxd4 {[%clk 00:49:02]} {[%emt 00:00:24]} 23. Rc1 {[%clk 00:28:49]}
{[%emt 00:00:04]} Be6 {[%clk 00:48:01]} {[%emt 00:01:31]} 24. Nc2 {[%clk
00:27:09]} {[%emt 00:02:09]} Be5 {[%clk 00:47:41]} {[%emt 00:00:50]} 25. Rfe1
{[%clk 00:25:56]} {[%emt 00:01:43]} Nd7 {[%clk 00:42:36]} {[%emt 00:05:37]} 26.
h3 {[%clk 00:22:35]} {[%emt 00:03:50]} Kf7 {[%clk 00:42:21]} {[%emt 00:00:45]}
27. hxg4 {[%clk 00:20:19]} {[%emt 00:02:46]} fxg4 {[%clk 00:42:37]} {[%emt
00:00:15]} 28. Be3 {[%clk 00:20:36]} {[%emt 00:00:11]} Rac8 {[%clk 00:41:48]}
{[%emt 00:01:20]} 29. Nd4 {[%emt 00:02:40]} Rxc1 {[%clk 00:41:50]} {[%emt
00:00:22]} 30. Rxc1 {[%clk 00:19:01]} {[%emt 00:00:02]} Bxd4 {[%clk 00:41:40]}
{[%emt 00:00:41]} 31. Bxd4 {[%clk 00:19:26]} {[%emt 00:00:03]} Bd5 {[%clk
00:41:26]} {[%emt 00:00:43]} 32. Be3 {[%clk 00:16:31]} {[%emt 00:03:25]} Kg6
{[%clk 00:41:15]} {[%emt 00:00:42]} 33. Bxa7 {[%clk 00:15:56]} {[%emt
00:01:05]} Ra8 {[%clk 00:41:38]} {[%emt 00:00:07]} 34. Rd1 {[%clk 00:15:40]}
{[%emt 00:00:46]} Bc6 {[%clk 00:41:28]} {[%emt 00:00:40]} 35. Be3 {[%clk
00:16:02]} {[%emt 00:00:07]} Rxa2 {[%clk 00:41:46]} {[%emt 00:00:12]} 36. Rd4
{[%clk 00:16:24]} {[%emt 00:00:08]} Nf6 {[%clk 00:40:07]} {[%emt 00:02:10]} 37.
Rf4 {[%clk 00:15:43]} {[%emt 00:01:10]} g3 {[%clk 00:28:29]} {[%emt 00:12:10]}
38. Bd4 {[%clk 00:13:55]} {[%emt 00:02:16]} Nh5 {[%clk 00:26:21]} {[%emt
00:02:38]} 39. Rg4+ {[%clk 00:09:40]} {[%emt 00:04:46]} Kf5 {[%clk 00:26:26]}
{[%emt 00:00:24]} 40. Rh4 {[%clk 00:10:08]} {[%emt 00:00:02]} Kg5 {[%clk
00:26:22]} {[%emt 00:00:34]} 41. fxg3 {[%clk 00:10:31]} {[%emt 00:00:06]} Rxg2+
{[%clk 00:26:33]} {[%emt 00:00:20]} 0-1

[Event "NJSK 2018 Jeugd C"]
[Site "Assen, Netherlands"]
[Date "2018.05.05"]
[Round "9.5"]
[White "Klaren, Duncan"]
[Black "Bleeker, Kasper"]
[Result "1/2-1/2"]
[TimeControl "40/90m+30sec/move"]
[WhiteElo "1713"]
[BlackElo "1737"]

1. e4 {[%clk 01:30:57]} {[%emt 00:00:09]} e5 {[%clk 01:30:55]} {[%emt
00:00:31]} 2. Nf3 {[%clk 01:31:20]} {[%emt 00:00:19]} Nc6 {[%clk 01:31:22]}
{[%emt 00:00:05]} 3. Bc4 {[%clk 01:31:32]} {[%emt 00:00:31]} Nf6 {[%clk
01:31:36]} {[%emt 00:00:15]} 4. d3 {[%clk 01:31:58]} {[%emt 00:00:11]} d6
{[%clk 01:31:45]} {[%emt 00:00:22]} 5. c3 {[%clk 01:32:00]} {[%emt 00:00:34]}
Na5 {[%clk 01:31:57]} {[%emt 00:00:29]} 6. Nbd2 {[%clk 01:31:36]} {[%emt
00:00:52]} Nxc4 {[%clk 01:31:36]} {[%emt 00:01:03]} 7. Nxc4 {[%clk 01:32:01]}
{[%emt 00:00:07]} Be6 {[%clk 01:32:00]} {[%emt 00:00:04]} 8. Ne3 {[%clk
01:30:57]} {[%emt 00:01:34]} Be7 {[%clk 01:31:50]} {[%emt 00:00:30]} 9. O-O
{[%clk 01:31:05]} {[%emt 00:00:18]} O-O {[%clk 01:32:09]} {[%emt 00:00:10]} 10.
Qc2 {[%clk 01:30:38]} {[%emt 00:00:36]} Ng4 {[%clk 01:29:05]} {[%emt 00:02:36]}
11. d4 {[%clk 01:28:26]} {[%emt 00:02:42]} f5 {[%clk 01:26:15]} {[%emt
00:03:20]} 12. exf5 {[%clk 01:23:04]} {[%emt 00:05:52]} Nxe3 {[%clk 01:26:04]}
{[%emt 00:00:41]} 13. Bxe3 {[%clk 01:23:19]} {[%emt 00:00:14]} Bxf5 {[%clk
01:26:26]} {[%emt 00:00:08]} 14. Qb3+ {[%clk 01:23:46]} {[%emt 00:00:03]} Kh8
{[%clk 01:26:25]} {[%emt 00:00:30]} 15. dxe5 {[%clk 01:23:14]} {[%emt
00:01:02]} Bg4 {[%clk 01:22:16]} {[%emt 00:04:39]} 16. Nd4 {[%clk 01:16:59]}
{[%emt 00:06:44]} dxe5 {[%clk 01:17:28]} {[%emt 00:05:19]} 17. Ne6 {[%clk
01:17:14]} {[%emt 00:00:15]} Bxe6 {[%clk 01:17:32]} {[%emt 00:00:26]} 18. Qxe6
{[%clk 01:17:38]} {[%emt 00:00:06]} Bd6 {[%clk 01:17:17]} {[%emt 00:00:45]} 19.
Qc4 {[%clk 01:13:20]} {[%emt 00:04:48]} Qf6 {[%clk 01:14:20]} {[%emt 00:03:27]}
20. Qe4 {[%clk 01:11:33]} {[%emt 00:02:17]} b6 {[%clk 01:10:25]} {[%emt
00:04:25]} 21. Rae1 {[%clk 01:11:18]} {[%emt 00:00:47]} Rad8 {[%clk 01:07:02]}
{[%emt 00:03:51]} 22. g3 {[%clk 01:09:18]} {[%emt 00:02:29]} Qe6 {[%clk
01:03:24]} {[%emt 00:04:08]} 1/2-1/2

[Event "NJSK 2018 Jeugd C"]
[Site "Assen, Netherlands"]
[Date "2018.05.05"]
[Round "9.6"]
[White "Albers, Sasa"]
[Black "Labruyere, Roger"]
[Result "0-1"]
[TimeControl "40/90m+30sec/move"]
[WhiteElo "1336"]
[BlackElo "1665"]

1. e4 {[%clk 01:30:59]} {[%emt 00:00:04]} c6 {[%clk 01:30:47]} {[%emt
00:00:58]} 2. d4 {[%clk 01:31:27]} {[%emt 00:00:02]} d5 {[%clk 01:31:11]}
{[%emt 00:00:10]} 3. exd5 {[%clk 01:31:52]} {[%emt 00:00:09]} cxd5 {[%clk
01:31:37]} {[%emt 00:00:05]} 4. Bd3 {[%clk 01:32:13]} {[%emt 00:00:14]} Nf6
{[%clk 01:32:02]} {[%emt 00:00:07]} 5. h3 {[%clk 01:32:29]} {[%emt 00:00:17]}
Nc6 {[%clk 01:32:27]} {[%emt 00:00:08]} 6. c3 {[%clk 01:32:38]} {[%emt
00:00:20]} e5 {[%clk 01:32:47]} {[%emt 00:00:12]} 7. dxe5 {[%clk 01:32:52]}
{[%emt 00:00:21]} Nxe5 {[%clk 01:33:11]} {[%emt 00:00:07]} 8. Qe2 {[%clk
01:33:09]} {[%emt 00:00:20]} Qe7 {[%clk 01:33:36]} {[%emt 00:00:08]} 9. Be3
{[%clk 01:33:30]} {[%emt 00:00:04]} Nxd3+ {[%clk 01:33:15]} {[%emt 00:00:53]}
10. Qxd3 {[%clk 01:33:48]} {[%emt 00:00:18]} g6 {[%clk 01:33:39]} {[%emt
00:00:11]} 11. Nf3 {[%clk 01:33:59]} {[%emt 00:00:20]} Bg7 {[%clk 01:33:54]}
{[%emt 00:00:19]} 12. O-O {[%clk 01:33:44]} {[%emt 00:00:42]} O-O {[%clk
01:34:18]} {[%emt 00:00:08]} 13. Nd4 {[%clk 01:32:18]} {[%emt 00:01:34]} Ne4
{[%clk 01:32:15]} {[%emt 00:01:15]} 14. Nd2 {[%clk 01:31:32]} {[%emt 00:01:17]}
Nc5 {[%clk 01:30:45]} {[%emt 00:02:02]} 15. Qb5 {[%clk 01:23:56]} {[%emt
00:08:04]} Bd7 {[%clk 01:28:45]} {[%emt 00:02:31]} 16. Nf5 {[%clk 01:07:20]}
{[%emt 00:17:05]} Qxe3 {[%clk 01:27:29]} {[%emt 00:01:45]} 17. Qxd7 {[%clk
01:06:47]} {[%emt 00:01:03]} Qxd2 {[%clk 01:27:50]} {[%emt 00:00:09]} 18. Ne7+
{[%clk 01:06:36]} {[%emt 00:00:41]} Kh8 {[%clk 01:28:14]} {[%emt 00:00:07]} 19.
Qc7 {[%clk 01:02:25]} {[%emt 00:04:39]} b6 {[%clk 01:24:53]} {[%emt 00:03:52]}
20. Rab1 {[%clk 00:57:16]} {[%emt 00:05:39]} Ne6 {[%clk 01:22:51]} {[%emt
00:02:32]} 21. Qc6 {[%clk 00:55:41]} {[%emt 00:02:05]} d4 {[%clk 01:18:45]}
{[%emt 00:04:37]} 22. c4 {[%clk 00:48:57]} {[%emt 00:07:12]} Qg5 {[%clk
01:18:08]} {[%emt 00:01:07]} 23. Nd5 {[%clk 00:47:52]} {[%emt 00:01:35]} Nf4
{[%clk 01:17:44]} {[%emt 00:00:56]} 24. Nxf4 {[%clk 00:45:08]} {[%emt
00:03:11]} Qxf4 {[%clk 01:18:07]} {[%emt 00:00:08]} 25. b3 {[%clk 00:43:16]}
{[%emt 00:02:24]} Be5 {[%clk 01:16:38]} {[%emt 00:01:56]} 26. g3 {[%clk
00:43:30]} {[%emt 00:00:16]} Qf6 {[%clk 01:17:04]} {[%emt 00:00:05]} 27. Qe4
{[%clk 00:42:47]} {[%emt 00:01:13]} Kg7 {[%clk 01:09:49]} {[%emt 00:07:44]} 28.
Rbd1 {[%clk 00:42:58]} {[%emt 00:00:20]} Rfe8 {[%clk 01:09:49]} {[%emt
00:00:29]} 29. Qd3 {[%clk 00:41:32]} {[%emt 00:01:57]} Rad8 {[%clk 01:07:45]}
{[%emt 00:02:34]} 30. Rd2 {[%clk 00:39:36]} {[%emt 00:02:25]} h5 {[%clk
01:06:04]} {[%emt 00:02:11]} 31. h4 {[%clk 00:39:17]} {[%emt 00:00:49]} Qd6
{[%clk 01:05:27]} {[%emt 00:01:08]} 32. Kg2 {[%clk 00:38:58]} {[%emt 00:00:48]}
Rc8 {[%clk 01:02:55]} {[%emt 00:03:01]} 33. Rh1 {[%clk 00:35:06]} {[%emt
00:04:22]} b5 {[%clk 01:03:14]} {[%emt 00:00:15]} 34. cxb5 {[%clk 00:34:52]}
{[%emt 00:00:42]} Rc3 {[%clk 01:03:37]} {[%emt 00:00:07]} 35. Qe4 {[%clk
00:30:03]} {[%emt 00:05:19]} Bxg3 {[%clk 00:58:02]} {[%emt 00:06:04]} 36. Qxe8
{[%clk 00:23:19]} {[%emt 00:07:14]} Qd5+ {[%clk 00:58:28]} {[%emt 00:00:05]} 37.
Kf1 {[%clk 00:21:20]} {[%emt 00:02:28]} Rc1+ {[%clk 00:58:43]} {[%emt
00:00:16]} 38. Ke2 {[%clk 00:21:30]} {[%emt 00:00:19]} Qxh1 {[%clk 00:59:08]}
{[%emt 00:00:05]} 39. Kd3 {[%clk 00:19:04]} {[%emt 00:02:56]} Qf3+ {[%clk
00:59:13]} {[%emt 00:00:24]} 40. Kxd4 {[%clk 00:19:20]} {[%emt 00:00:15]} Bxf2+
{[%emt 00:00:37]} 0-1